Cogmind - Beta 13 *** ADVENTURER MODE // 2024.06.15 @ 20:57:18 Player: Kurtz Result: Destroyed by as-06352 with Assembled F-torch Performance ------------- Evolutions (0) 0 Regions Visited (4) 800 Robots Destroyed (18) 90 Value Destroyed (521) 521 Prototype IDs (0) 0 Alien Tech Used (0) 0 Bonus (0) 0 TOTAL SCORE: 1411 Bonus ------- None Cogmind --------- Core Integrity 0/250 Matter 300/300 Energy 100/100 System Corruption 0% Temperature Cool (20) Movement Core (100) Ox1 Location -9/Mines Parts ------- > --- POWER (1) -------- (None) > --- PROPULSION (2) --- (None) > --- UTILITY (2) ------ Small Storage Unit > --- WEAPON (2) ------- Light Assault Rifle > --- INVENTORY (8) ---- Improved Hover Unit Flight Unit Flight Unit Weight Redist. System Visual Processing Unit Small Laser Peak State ------------ > --- POWER ------------ Light Nuclear Core > --- PROPULSION ------- Improved Hover Unit Improved Hover Unit > --- UTILITY ---------- Small Storage Unit ECM Suite > --- WEAPON ----------- Small Laser Light Assault Rifle > --- INVENTORY -------- Improved Hover Unit Flight Unit Flight Unit Weight Redist. System Visual Processing Unit Small Laser Light Assault Rifle [Rating: 12] Favorites ----------- Power Ion Engine Engine Ion Engine Power Core Light Nuclear Core Propulsion Improved Hover Unit Wheel Compact Wheel Hover Unit Improved Hover Unit Utility Small Storage Unit Device ECM Suite Storage Small Storage Unit Weapon Light Assault Rifle Energy Gun Medium Laser Ballistic Gun Light Assault Rifle Build | -11 -10 -10 -10 -9 ------- Run | Yrd Mat Min Exi Min Slots Evolved . | . . . . . Power . | . . . . . Propulsion . | . . . . . Utility . | . . . . . Weapon . | . . . . . Parts Attached 13 | 6 3 2 . 2 Power 2 | 1 . . . 1 Engine 1 | 1 . . . . Core 1 | . . . . 1 Reactor . | . . . . . Propulsion 5 | 2 2 1 . . Treads . | . . . . . Leg . | . . . . . Wheel 2 | 2 . . . . Hover 3 | . 2 1 . . Flight . | . . . . . Utility 2 | 1 1 . . . Device 1 | . 1 . . . Storage 1 | 1 . . . . Processor . | . . . . . Hackware . | . . . . . Protection . | . . . . . Artifact . | . . . . . Weapon 4 | 2 . 1 . 1 Energy Gun 2 | 1 . 1 . . Energy Cannon . | . . . . . Ballistic Gun 2 | 1 . . . 1 Ballistic Cannon . | . . . . . Launcher . | . . . . . Special Weapon . | . . . . . Impact Weapon . | . . . . . Slashing Weapon . | . . . . . Piercing Weapon . | . . . . . Special Melee Weapon . | . . . . . Unidentified Prototypes . | . . . . . Parts Lost 9 | . . 3 . 6 Power 2 | . . 1 . 1 Propulsion 3 | . . 1 . 2 Utility 1 | . . . . 1 Weapon 3 | . . 1 . 2 Highest Loss Streak 6 | . . 3 . 6 To Critical Strikes . | . . . . . Average Slot Usage (%) 90 | . 93 83 85 92 Engine 7 | . 14 6 . . Core 2 | . . . . 11 Wheel 7 | . 14 . . . Hover 20 | . 13 23 28 26 Device 10 | . 7 14 14 13 Storage 14 | . 14 14 14 14 Energy Gun 13 | . 14 10 14 12 Ballistic Gun 13 | . 14 14 14 13 Naked Turns . | . . . . . Heaviest Build 15 | 13 15 15 9 14 Greatest Support 32 | 32 32 14 14 14 Greatest Overweight (x) 1 | . 1 1 . 1 Average Overweight (x) . | . . . . . Largest Inventory Capacity 8 | 8 8 8 8 8 Average Capacity 7 | 6 8 8 8 8 Most Carried 7 | 4 6 5 3 7 Average Carried 3 | . 2 3 3 5 Final Capacity 8 | 8 8 8 8 8 Final Carried 6 | . 4 3 3 6 Class Distribution -------------------- 100% | Mutant Dominant Class ---------------- Mutant | -10/Materials Mutant | -10/Mines Mutant | -10/Exiles Mutant | -9/Mines Resources | -11 -10 -10 -10 -9 ----------- Run | Yrd Mat Min Exi Min Matter Collected 380 | 231 98 5 . 46 Remotely . | . . . . . Salvage Created 603 | . 340 101 . 162 Parts 28 | . 12 3 . 13 Haulers Intercepted . | . . . . . Recyclers Shooed . | . . . . . Parts Field Recycled . | . . . . . Retrieved Matter . | . . . . . Parts Self-Destructed . | . . . . . Prevented . | . . . . . Kills | -11 -10 -10 -10 -9 ------- Run | Yrd Mat Min Exi Min Combat Hostiles Destroyed 16 | . 7 2 . 7 Guns 16 | . 7 2 . 7 Classes Destroyed 3 | . 2 . . 1 Watcher 2 | . 2 . . . Swarmer 5 | . . . . 5 Grunt 11 | . 7 2 . 2 Best Kill Streak 3 | . 2 2 . 3 Combat Bots Only 3 | . 2 2 . 3 Max Kills in Single Turn 1 | . 1 1 . 1 Gunslinging . | . . . . . Exploded . | . . . . . Melee . | . . . . . Uniques/NPCs Destroyed . | . . . . . Combat | -11 -10 -10 -10 -9 -------- Run | Yrd Mat Min Exi Min Hostile Shots Fired 93 | . 37 11 . 45 Missed 22 | . 10 . . 12 Damage Taken 787 | . 301 109 . 377 Core 250 | . 83 44 . 123 Absorbed by Shields . | . . . . . Ignored by Resistances 233 | . 91 33 . 109 Core Remaining (%) 100 | 100 . . . . Volleys Fired 72 | . 41 10 . 21 Largest 2 | . 2 2 . 2 Hottest 70 | . 70 70 . 60 Shots Fired 134 | . 80 15 . 39 Gun 134 | . 80 15 . 39 Cannon . | . . . . . Launcher . | . . . . . Special . | . . . . . Kinetic 70 | . 39 10 . 21 Thermal 64 | . 41 5 . 18 Explosive . | . . . . . Electromagnetic . | . . . . . Robot Hit Streak 28 | . 25 28 . 10 Robot Miss Streak 2 | . 2 1 . 1 Penetration Max . | . . . . . Secondary Targets 1 | . . . . 1 Max Gunslinging Chain 1 | . . . . 1 Shots Hit Robots 112 | . 66 14 . 32 Core Hits 41 | . 21 6 . 14 Critical Kills . | . . . . . Critical Parts Destroyed . | . . . . . Critical Strikes 3 | . 2 1 . . Burn 3 | . 2 1 . . Melee Attacks . | . . . . . Impact . | . . . . . Slashing . | . . . . . Piercing . | . . . . . Sneak Attacks . | . . . . . Combat Hostiles . | . . . . . Follow-up Attacks . | . . . . . Damage Inflicted 1131 | . 683 139 . 309 Guns 1131 | . 683 139 . 309 Cannons . | . . . . . Explosions . | . . . . . Melee . | . . . . . Ramming . | . . . . . Kinetic 436 | . 238 76 . 122 Thermal 695 | . 445 63 . 187 Explosive . | . . . . . Electromagnetic . | . . . . . Impact . | . . . . . Slashing . | . . . . . Piercing . | . . . . . Highest Corruption . | . . . . . Average Corruption . | . . . . . Corruption Purged . | . . . . . Corruption Blocked . | . . . . . Overload Shots . | . . . . . Overflow Damage . | . . . . . Projectiles . | . . . . . Explosions . | . . . . . Melee . | . . . . . Knockbacks . | . . . . . Impact . | . . . . . Kinetic . | . . . . . Secondary . | . . . . . Self-Inflicted Damage . | . . . . . Shots . | . . . . . Rammed . | . . . . . Targets Rammed . | . . . . . Kicked . | . . . . . Crushed . | . . . . . Highest Temperature 225 | . 225 96 . 132 Average Temperature 57 | . 65 51 . 43 Received Heat Transfer 505 | . 252 78 . 175 Effects 2 | . 2 . . . Energy Bleed 1 | . 1 . . . Interference 1 | . 1 . . . Siege Activations . | . . . . . Robots Corrupted . | . . . . . Combat Hostiles . | . . . . . Parts Fried . | . . . . . Impact Corruptions . | . . . . . Robots Melted . | . . . . . Combat Hostiles . | . . . . . Parts Melted 5 | . 5 . . . Heat Transferred 2164 | . 1480 259 . 425 Parts Sabotaged . | . . . . . Parts Stolen . | . . . . . Parts Stripped . | . . . . . Power Chain Reactions . | . . . . . Alert | -11 -10 -10 -10 -9 ------- Run | Yrd Mat Min Exi Min Peak Influence 200 | . 144 67 . 200 Initial 47 | . . 47 . . Average 86 | . 73 52 . 137 Maximum Alert Level 1 | . . . . 1 Low Security (%) 91 | 100 100 100 . 67 Level 1 8 | . . . . 32 Level 2 . | . . . . . Level 3 . | . . . . . Level 4 . | . . . . . Level 5 . | . . . . . High Security . | . . . . . Max Security . | . . . . . Squads Dispatched . | . . . . . Investigation . | . . . . . Extermination . | . . . . . Reinforcement . | . . . . . Assault . | . . . . . Garrison . | . . . . . Intercept . | . . . . . Searches Triggered . | . . . . . Construction Impeded . | . . . . . Haulers Reinforced . | . . . . . Active Scanning Responses . | . . . . . Cargo Convoy Interrupts . | . . . . . Stealth | -11 -10 -10 -10 -9 --------- Run | Yrd Mat Min Exi Min Distress Signals . | . . . . . Communications Jammed . | . . . . . Distress Signals . | . . . . . Times Spotted 37 | . 16 4 . 17 Peak Tracking Total 6 | . 4 2 . 6 Tactical Retreats 5 | . 2 1 . 2 Traps | -11 -10 -10 -10 -9 ------- Run | Yrd Mat Min Exi Min Traps Triggered . | . . . . . Indirectly . | . . . . . Trap Hack Attempts . | . . . . . Triggered . | . . . . . Disarmed . | . . . . . Reprogrammed . | . . . . . Reused . | . . . . . Traps Extracted . | . . . . . Installed . | . . . . . Triggered . | . . . . . Machines | -11 -10 -10 -10 -9 ---------- Run | Yrd Mat Min Exi Min Machines Disabled . | . . . . . Max in Single Turn . | . . . . . Machines Repaired . | . . . . . Machines Dismantled . | . . . . . Machines Sabotaged . | . . . . . Overloaded Fab Kills . | . . . . . Hacking | -11 -10 -10 -10 -9 --------- Run | Yrd Mat Min Exi Min Machines Accessed 7 | . 2 . 4 1 Terminals 2 | . 1 . . 1 Fabricators . | . . . . . Repair Stations . | . . . . . Recycling Units 1 | . 1 . . . Scanalyzers . | . . . . . Garrison Access . | . . . . . Total Hacks 10 | . 5 . 4 1 Successful 10 | . 5 . 4 1 Failed . | . . . . . Catastrophic . | . . . . . Database Lockouts . | . . . . . Manual 1 | . . . 1 . Terminals 2 | . 1 . . 1 Fabricators . | . . . . . Repair Stations . | . . . . . Recycling Units 4 | . 4 . . . Scanalyzers . | . . . . . Garrison Access . | . . . . . Terminal Hacks 6 | . 1 . 4 1 Record 6 | . 1 . 4 1 Fabricator Hacks . | . . . . . Repair Station Hacks . | . . . . . Recycling Unit Hacks 4 | . 4 . . . Recycle Component 2 | . 2 . . . Process 1 | . 1 . . . Retrieve Matter 1 | . 1 . . . Scanalyzer . | . . . . . Garrison Access Hacks . | . . . . . Unauthorized Hacks . | . . . . . Terminals . | . . . . . Fabricators . | . . . . . Repair Stations . | . . . . . Recycling Units . | . . . . . Scanalyzers . | . . . . . Garrison Access . | . . . . . Data Cores Recovered . | . . . . . Used . | . . . . . Hacking Detections 3 | . 2 . . 1 Full Trace Events 1 | . 1 . . . Feedback Events . | . . . . . Feedback Blocked . | . . . . . Robot Schematics Acquired . | . . . . . Robots Built . | . . . . . Authchips . | . . . . . Time . | . . . . . Total Robot Build Rating . | . . . . . Part Schematics Acquired . | . . . . . Parts Built . | . . . . . Authchips . | . . . . . Time . | . . . . . Total Part Build Rating . | . . . . . Parts Repaired . | . . . . . Time . | . . . . . Parts Recycled 2 | . 2 . . . Recycled Matter 37 | . 37 . . . Retrieved Matter 37 | . 37 . . . Retrieved Components . | . . . . . Parts Scanalyzed . | . . . . . Part Schematics Acquired . | . . . . . Parts Damaged . | . . . . . Bothacking | -11 -10 -10 -10 -9 ------------ Run | Yrd Mat Min Exi Min Used RIF Installer . | . . . . . Robots Hacked . | . . . . . Non-combat . | . . . . . Combat . | . . . . . Robot Hacks Applied . | . . . . . Relay Couplers Released . | . . . . . Fabnet Peak Effective % . | . . . . . Robots Rewired . | . . . . . Allies Hacked . | . . . . . Hacks Repelled . | . . . . . Allies | -11 -10 -10 -10 -9 -------- Run | Yrd Mat Min Exi Min Total Allies . | . . . . . Largest Group . | . . . . . Highest-Rated Group . | . . . . . Highest-Rated Ally . | . . . . . Total Orders . | . . . . . Ally Attacks . | . . . . . Total Damage . | . . . . . Kills . | . . . . . Allies Corrupted . | . . . . . Allies Melted . | . . . . . Intel | -11 -10 -10 -10 -9 ------- Run | Yrd Mat Min Exi Min Robot Analysis Total . | . . . . . Derelict Logs Recovered 1 | . . . . 1 Drone Launches . | . . . . . Drone Recoveries . | . . . . . Exploration | -11 -10 -10 -10 -9 ------------- Run | Yrd Mat Min Exi Min Turns Passed 1458 | 34 730 89 303 302 Spaces Moved 1502 | 28 527 54 541 352 Core 27 | 10 . . . 17 Treads . | . . . . . Legs . | . . . . . Wheels 312 | 18 294 . . . Hover 1163 | . 233 54 541 335 Flight . | . . . . . Fastest Speed 50 | 50 100 56 56 56 Average Speed 76 | 82 107 100 56 58 Slowest Speed 120 | 100 116 120 56 100 Overloaded Moves . | . . . . . Propulsion Burnouts . | . . . . . Robots Hopped . | . . . . . Cave-ins Triggered . | . . . . . Exploration Rate (%) 52 | 4 86 11 92 69 Regions Visited 4 Branch Regions 3 Pre-discovered Areas . | . . . . . Known Exits Taken . | . . . . . Unknown Exits Taken 4 | 1 1 1 1 . Scrap Searched . | . . . . . Spaces Dug . | . . . . . Terrain Destroyed . | . . . . . Melee . | . . . . . Projectile . | . . . . . AOE . | . . . . . Terrain Rammed . | . . . . . Walls Destroyed . | . . . . . Machines Disabled . | . . . . . Actions | -11 -10 -10 -10 -9 --------- Run | Yrd Mat Min Exi Min Total 1689 | 39 621 75 540 414 Wait 85 | . 42 9 . 34 Move 1498 | 27 526 53 540 352 Hop . | . . . . . Pick Up 19 | 6 7 1 . 5 Fast Attach . | . . . . . Attach 13 | 6 3 2 . 2 Detach 2 | . 2 . . . Swap . | . . . . . Drop . | . . . . . Fire 72 | . 41 10 . 21 Melee . | . . . . . Ram . | . . . . . Kick . | . . . . . Crush . | . . . . . Escape Stasis . | . . . . . Rewire . | . . . . . Trap . | . . . . . Miscellaneous . | . . . . . Route ------- -11/Scrapyard -10/Materials (discovered 5 exits: [*Mat x3] / [*Min x2]) -10/Mines -10/Exiles (discovered 2 exits: *Min x2) -9/Mines (discovered 1 exit: [*Mat]) History --------- Turn | Location | Event 6 | -11/Scrapyard | Discovered new exit (range 16) 35 | -11/Scrapyard | Entered Materials 244 | -10/Materials | Discovered new exit (range 6) 308 | -10/Materials | Build established: Mutant 310 | -10/Materials | Discovered new exit (range 3) 501 | -10/Materials | Discovered new exit (range 16) 663 | -10/Materials | Discovered new exit (range 13) 749 | -10/Materials | Discovered new exit (range 14) 765 | -10/Materials | Entered Mines 825 | -10/Mines | Core integrity fell below 50% 849 | -10/Mines | Lost 3 parts (1p1n1w) 850 | -10/Mines | Deemed a non-threat by the Exiles lab entrance 851 | -10/Mines | Discovered new exit (range 5) 854 | -10/Mines | Entered Exiles 854 | -10/Exiles | Found Exiles lab abandoned 866 | -10/Exiles | Discovered new exit (range 15) 1013 | -10/Exiles | Discovered new exit (range 14) 1157 | -10/Exiles | Entered Mines 1351 | -9/Mines | Discovered new exit (range 10) 1371 | -9/Mines | Assembled infested the area 1376 | -9/Mines | Assisted by a Guerilla fighting off Assembled 1432 | -9/Mines | Core integrity fell below 20% 1459 | -9/Mines | Destroyed by as-06352 with Assembled F-torch Last Messages --------------- cause a cave-in, but only if doing so for extended periods. Tunneling a short distance between rooms is safe unless the area was destabilized by an explosion. 01441_ The unstable cave ceiling collapses. 01442_ Imp. Hover Unit destroyed. 01442_ R-06 Scavenger collects Launcher Guidance Computer. 01443_ HV Slug penetrates as-56655. 01443_ as-56655 knocked back. 01443_ HV Slug penetrates Wall. 01445_ The unstable cave ceiling collapses. 01445_ OX-G94(h) destroyed. 01445_ R-06 Scavenger collects Imp. Light Armor Plating. 01447_ The unstable cave ceiling collapses. 01448_ K-01 Serf collects debris. 01449_ R-06 Scavenger collects Mni. Grenade Launcher. 01450_ as-54779 sneak attacks. 01450_ R-06 Scavenger system corrupted by crushing effect. 01450_ R-06 Scavenger destroyed. 01452_ K-01 Serf collects debris. 01454_ K-01 Serf destroyed. Map ----- +----------------------------------------------------+ | ##?????????? #??????????????????????????? | | ##########???# #??????????????????????????? | | ### """ #???# #??????????????????????????? | | %% """ ######% #???????????????????????????? | | #### """ ==% ##???????????????????????????? | | #???# ###### ##????????????????????????????? | | ????# ###### #?????????????????????????????? | | ????######## # ##????????????????????????????? | | ?????????## #########????????????????????# | | ?????????# #???????????????????## | | ?????????# ???????????##### | | ????????## % ######## ??????????## | | ????????#" ##????????? ????????#### | | ????????# #######?????????????### | | ????????# % # # ##???????????## | | ????????## ####???????## ## | | ????????## ! %% ;#####??## #### | | #?####### = % !%%% ; #??# ##?### | | ## ## * ]! ######??## ## #???# | | ### ###aa#????????# ### ##### | | # ## #?#= #??????### #?## ## | | ##############?#aa##?????# #??#### | | ## ##?????????????## ##????# #?????# ### | | ?## ##?????????????## t ###### ###????## #?# | | ?## ##????????## ### #?????## ### | | ## #?????????# @ ##### #?????# ## | | ##?????????# ##???# #?????# | | ###??????????# ##????# #?????# | | ##????????????# t##????## #?????# | | ##????????????# ##????## #????# # | | #?????????????# ##????# #???# < ### | | ##????????????# ##???# #???# ##?? | | #????????????# ## ##??## #???## ##??? | | #????#####???# #?## ##??# #????###????? | | ##????# #???###???## ##?# ##??????????? | | #????## #??????????## ### ###????????? | | ##???## #???????????## ##???????? | | #????# ##???????????# ##??????? | | #????# #???????????# #??????? | | ####### #???######### """ ##?###?? | | ### #???# """ ## #?? | | ## #???# """ #?? | | ?# ##???# ###### ## #?? | | ?# ##### ##????# #??## #### ##?? | | ?# #???# #?????# #??# #?## ####??? | | ?# #???# #?????# #??# ##?# ##?????? | | ?# #???# #?????# #??## #??# ##?????? | | ?# ##???# ####### #???##### #??# ## ###???? | | ?###????# #???????## #?###### ##??? | | ????????######### #????????## #??????## #### | +----------------------------------------------------+ Best States ------------- Heat Dissipation 25 Energy Generation 14 Energy Capacity 250 Matter Stores 300 Matter Capacity 300 Sight Range 16 Terrain Scan Density 10 ECM Strength 1 Resistance: KI 20 Resistance: TH 20 Resistance: EX 20 Resistance: EM 20 Resistance: I 20 Resistance: S 20 Resistance: P 20 Evasion (%) 53 Offensive Hacking 10 Item Schematics ----------------- None Robot Schematics ------------------ None Fabricated ------------ Nothing Alien Tech Used ----------------- None Achievements -------------- None Challenges ------------ None Game ------ Seed FireRefineryCharge Manual? 0 Play Time 00:29:46 Cumulative 455.1 hours Start 2024.06.15 @ 20:27:54 End 2024.06.15 @ 20:57:18 Sessions 1 Manual Loads 0 Difficulty Adventurer Special Mode None Game No. 32 Rogue 1 Adventurer 31 Explorer 0 Win Type - Total 3 Types 2/0/0/1/0/0/0/0/0 Lore% 52 Gallery% 41 Achievement% 57 Wizard Run 0 Options --------- Layout 1 ASCII 0 Keyboard 0 Movement Numpad Keybinds 0 Fullscreen 1 Font 32/SmallcapsGlow Map View 77x35 Zoom Use 0% Tactical HUD 1 Map Filters NONE Filters NONE Steam 1 RUN: 7c5b23ea-2c27-4993-878f-cf8caee55b48